fUSD/lending_fUSD_20240612
["ID","MTS","AMOUNT","RATE_DAILY","PERIOD"]
[329290519,1718219438201,-280.0,0.00024894,2]
[329290520,1718219438212,-171.04395705,0.000249,2]
[329290521,1718219438225,-295.56194681,0.00024953,2]
[329290522,1718219438235,-676.89,0.0002499,3]
[329290523,1718219438250,-14477.41742419,0.00025,2]
[329290524,1718219438269,-560.854862,0.00025,2]
[329290525,1718219438281,-225.34445904,0.00025,2]
[329290526,1718219438292,-156.70765501,0.00025003,2]
[329290527,1718219438303,-154.75417908,0.00025114,2]
[329290528,1718219438314,-295.56194681,0.0002515,2]
[329290529,1718219438325,-295.56194681,0.00025324,2]
[329290530,1718219438335,-156.70765501,0.0002535,2]
[329290531,1718219438349,-549.7110208,0.00025457,2]
[329290532,1718219438361,-151.378863,0.00025536,2]
[329290533,1718219438373,-295.56194681,0.00025572,2]
[329290534,1718219438384,-600.0,0.00025628,2]
[329290535,1718219438395,-325.39,0.00025765,2]
[329290536,1718219438407,-295.56194681,0.00025844,2]
[329290537,1718219438417,-153.72976904,0.0002586,2]
[329290538,1718219438430,-490.22199486,0.00025961,2]
[329290539,1718219438441,-159.41319753,0.0002601,2]
[329290540,1718219438453,-225.63,0.00026017,3]
[329290541,1718219438466,-1500.0,0.00026027,30]
[329290542,1718219438481,-295.56194681,0.00026061,2]
[329290543,1718219438492,-158.32026496,0.00026147,2]
[329290544,1718219438523,-153.37570353,0.00026151,2]
[329290545,1718219438536,-151.48043344,0.00026177,2]
[329290546,1718219438549,-26193.0,0.000263,2]
[329290547,1718219438561,-1500.0,0.00026301,30]
[329290548,1718219438572,-151.36047298,0.00026347,2]
[329290549,1718219438584,-490.22199479,0.00026399,2]
[329290550,1718219438595,-295.56194681,0.00026493,2]
[329290551,1718219438606,-1500.0,0.00026575,30]
[329290552,1718219438617,-295.56194681,0.00026621,2]
[329290553,1718219438628,-295.56194681,0.00026624,2]
[329290554,1718219438640,-154.75417908,0.00026639,2]
[329290555,1718219438650,-153.37570353,0.00026668,2]
[329290556,1718219438661,-303.5903,0.000267,2]
[329290557,1718219438672,-11741.0,0.000268,3]
[329290558,1718219438684,-151.378863,0.00026812,2]
[329290559,1718219438696,-490.22199479,0.00026836,2]
[329290560,1718219438708,-295.56194681,0.00026844,2]
[329290561,1718219438722,-1116.14898196,0.00026849,30]
[329290562,1718219438733,-153.31,0.00026855,2]
[329290563,1718219438744,-154.56920935,0.00026907,2]
[329290564,1718219438755,-17804.38443806,0.00027,2]
[329290565,1718219438766,-200.0,0.00027,2]
[329290566,1718219438778,-500.0,0.00027099,2]
[329290567,1718219438789,-500.0,0.00027099,2]
[329290568,1718219438801,-500.0,0.00027099,2]
[329290569,1718219438814,-500.0,0.00027099,2]
[329290570,1718219438825,-500.0,0.00027099,2]
[329290571,1718219438835,-500.0,0.00027099,2]
[329290572,1718219438845,-500.0,0.00027099,2]
[329290573,1718219438856,-623.92916287,0.00027099,2]
[329290574,1718219438866,-500.0,0.00027099,2]
[329290575,1718219438877,-500.0,0.00027099,2]
[329290576,1718219438888,-500.0,0.00027099,2]
[329290577,1718219438899,-500.0,0.00027099,2]
[329290578,1718219438909,-3000.0,0.000271,2]
[329290579,1718219438920,-2013.69130441,0.000272,2]
[329290580,1718219438933,-11741.0,0.000272,5]
[329290581,1718219438945,-500.0,0.00027236,2]
[329290582,1718219438956,-500.0,0.00027236,2]
[329290583,1718219438967,-614.02,0.00027236,2]
[329290584,1718219438980,-500.0,0.00027236,2]
[329290585,1718219438991,-500.0,0.00027236,2]
[329290586,1718219439001,-500.0,0.00027298,2]
[329290587,1718219439012,-500.0,0.00027298,2]
[329290588,1718219439023,-500.0,0.00027298,2]
[329290590,1718219439036,-299.3,0.00027298,2]
[329290592,1718219439047,-500.0,0.00027298,2]
[329290594,1718219439058,-500.0,0.00027298,2]
[329290596,1718219439069,-500.0,0.00027298,2]
[329290598,1718219439081,-500.0,0.00027298,2]
[329290600,1718219439097,-500.0,0.00027299,2]
[329290602,1718219439113,-500.0,0.00027299,2]
[329290604,1718219439131,-500.0,0.00027299,2]
[329290606,1718219439144,-500.0,0.00027299,2]
[329290608,1718219439159,-500.0,0.00027299,2]
[329290610,1718219439175,-500.0,0.00027299,2]
[329290612,1718219439188,-500.0,0.00027299,2]
[329290615,1718219439210,-500.0,0.00027299,2]
[329290616,1718219439226,-500.0,0.00027299,2]
[329290618,1718219439242,-500.0,0.00027299,2]
[329290620,1718219439260,-500.0,0.00027299,2]
[329290622,1718219439277,-500.0,0.00027299,2]
[329290623,1718219439290,-500.0,0.00027299,2]
[329290624,1718219439305,-500.0,0.00027299,2]
[329290625,1718219439316,-500.0,0.00027299,2]
[329290626,1718219439331,-500.0,0.00027299,2]
[329290627,1718219439345,-500.0,0.00027299,2]
[329290629,1718219439363,-500.0,0.00027299,2]
[329290632,1718219439378,-500.0,0.00027299,2]
[329290634,1718219439390,-500.0,0.00027299,2]
[329290636,1718219439402,-500.0,0.00027299,2]
[329290638,1718219439414,-500.0,0.00027299,2]
[329290640,1718219439428,-500.0,0.00027299,2]
[329290643,1718219439444,-500.0,0.00027299,2]
[329290645,1718219439455,-500.0,0.00027299,2]
[329290646,1718219439469,-500.0,0.00027299,2]
[329290648,1718219439486,-500.0,0.00027299,2]
[329290650,1718219439522,-500.0,0.00027299,2]
[329290652,1718219439534,-500.0,0.00027299,2]
[329290654,1718219439546,-500.0,0.00027299,2]
[329290656,1718219439558,-230.17,0.00027299,2]
[329290658,1718219439569,-500.0,0.00027299,2]
[329290660,1718219439584,-500.0,0.00027299,2]
[329290662,1718219439601,-500.0,0.00027299,2]
[329290664,1718219439613,-500.0,0.00027299,2]
[329290666,1718219439625,-419.26,0.00027299,2]
[329290668,1718219439640,-500.0,0.00027299,2]
[329290670,1718219439651,-500.0,0.00027299,2]
[329290672,1718219439665,-151.378863,0.00027302,2]
[329290674,1718219439676,-154.13615403,0.00027319,2]
[329290676,1718219439688,-451.26,0.00027387,3]
[329290677,1718219439700,-208.36,0.00027397,10]
[329290679,1718219439711,-173.64,0.00027397,10]
[329290681,1718219439727,-868.2,0.00027397,10]
[329290683,1718219439741,-150.0,0.00027397,2]
[329290685,1718219439755,-260.44518804,0.000274,2]
[329290687,1718219439769,-609.34621308,0.000274,2]
[329290689,1718219439782,-1000.0,0.000274,2]
[329290691,1718219439795,-1462.0,0.000274,2]
[329290694,1718219439809,-151.0,0.000274,30]
[329290695,1718219439820,-155.88,0.000274,2]
[329290697,1718219439832,-500.0,0.00027435,2]
[329290699,1718219439845,-500.0,0.00027435,2]
[329290701,1718219439857,-500.0,0.00027435,2]
[329290703,1718219439869,-500.0,0.00027435,2]
[329290705,1718219439881,-500.0,0.00027436,2]
[329290707,1718219439892,-271.46,0.00027436,2]
[329290709,1718219439903,-161.45572177,0.00027436,2]
[329290711,1718219439914,-500.0,0.00027436,2]
[329290713,1718219439925,-500.0,0.00027436,2]
[329290715,1718219439937,-500.0,0.00027436,2]
[329290717,1718219439951,-500.0,0.00027436,2]
[329290719,1718219439963,-500.0,0.00027436,2]
[329290721,1718219439975,-500.0,0.00027436,2]
[329290723,1718219439985,-500.0,0.00027436,2]
[329290725,1718219439996,-500.0,0.00027436,2]
[329290727,1718219440007,-500.0,0.00027572,2]
[329290729,1718219440017,-500.0,0.00027573,2]
[329290731,1718219440028,-1000.0,0.000276,2]
[329290733,1718219440039,-280.0,0.0002766,2]
[329290735,1718219440050,-160.10895042,0.00027699,2]
[329290737,1718219440063,-500.0,0.00027709,2]
[329290739,1718219440075,-500.0,0.0002771,2]
[329290741,1718219440086,-526.15920945,0.0002782,2]
[329290743,1718219440097,-533.32,0.00027846,2]
[329290745,1718219440111,-500.0,0.00027847,2]
[329290747,1718219440124,-2248.546,0.00027875,2]
[329290749,1718219440135,-1615.4678,0.00027877,2]
[329290751,1718219440148,-158.45165058,0.00027884,2]
[329290753,1718219440159,-223.56354398,0.00027887,2]
[329290755,1718219440171,-266.2781261,0.000279,2]
[329290757,1718219440184,-3000.0,0.00027912,2]
[329290759,1718219440196,-154.75417908,0.00027916,2]
[329290761,1718219440207,-500.0,0.0002792,2]
[329290763,1718219440219,-500.0,0.0002792,2]
[329290766,1718219440237,-500.0,0.0002792,2]
[329290768,1718219440249,-347.68472896,0.0002792,2]
[329290770,1718219440270,-478.91952894,0.0002792,2]
[329290772,1718219440281,-16025.98693027,0.0002792,2]
[329290774,1718219440292,-500.0,0.0002792,2]
[329290776,1718219440304,-438.10166907,0.0002792,2]
[329290778,1718219440317,-473.71148537,0.0002792,2]
[329290780,1718219440329,-500.0,0.0002792,2]
[329290782,1718219440341,-500.0,0.0002792,2]
[329290784,1718219440353,-500.0,0.0002792,2]
[329290786,1718219440365,-500.0,0.0002792,2]
[329290788,1718219440377,-500.0,0.0002792,2]
[329290790,1718219440389,-150.0,0.0002792,2]
[329290792,1718219440401,-500.0,0.0002792,2]
[329290794,1718219440412,-500.0,0.0002792,2]
[329290796,1718219440424,-500.0,0.0002792,2]
[329290798,1718219440435,-528.37,0.0002792,2]
[329290800,1718219440447,-500.0,0.0002792,2]
[329290802,1718219440458,-621.48720606,0.0002792,2]
[329290804,1718219440475,-500.0,0.0002792,2]
[329290806,1718219440488,-500.0,0.0002792,2]
[329290809,1718219440534,-500.0,0.0002792,2]
[329290811,1718219440547,-500.0,0.0002792,2]
[329290813,1718219440562,-500.0,0.0002792,2]
[329290815,1718219440580,-500.0,0.0002792,2]
[329290817,1718219440599,-425.55383017,0.0002792,2]
[329290819,1718219440614,-648.93433216,0.0002792,2]
[329290821,1718219440629,-500.0,0.0002792,2]
[329290823,1718219440641,-500.0,0.0002792,2]
[329290825,1718219440654,-500.0,0.0002792,2]
[329290827,1718219440666,-191.34579788,0.0002792,2]
[329290829,1718219440679,-500.0,0.0002792,2]
[329290831,1718219440692,-500.0,0.0002792,2]
[329290833,1718219440704,-544.2,0.0002792,2]
[329290835,1718219440718,-500.0,0.0002792,2]
[329290837,1718219440741,-500.0,0.0002792,2]
[329290840,1718219440768,-393.7,0.0002792,2]
[329290842,1718219440788,-500.0,0.0002792,2]
[329290843,1718219440809,-500.0,0.0002792,2]
[329290845,1718219440832,-500.0,0.0002792,2]
[329290847,1718219440845,-500.0,0.0002792,2]
[329290849,1718219440857,-500.0,0.0002792,2]
[329290850,1718219440868,-600.85770455,0.0002792,2]
[329290852,1718219440880,-500.0,0.0002792,2]
[329290854,1718219440899,-500.0,0.0002792,2]
[329290856,1718219440924,-500.0,0.0002792,2]
[329290858,1718219440955,-291.87061419,0.0002792,2]
[329290861,1718219440981,-500.0,0.0002792,2]
[329290863,1718219440999,-500.0,0.0002792,2]
[329290865,1718219441012,-500.0,0.0002792,2]
[329290867,1718219441024,-500.0,0.0002792,2]
[329290869,1718219441041,-509.72413434,0.0002792,2]
[329290871,1718219441053,-500.0,0.0002792,2]
[329290873,1718219441068,-500.0,0.0002792,2]
[329290875,1718219441081,-500.0,0.0002792,2]
[329290877,1718219441093,-500.0,0.0002792,2]
[329290878,1718219441114,-500.0,0.0002792,2]
[329290879,1718219441129,-500.0,0.0002792,2]
[329290881,1718219441140,-500.0,0.0002792,2]
[329290883,1718219441152,-447.89,0.0002792,2]
[329290885,1718219441164,-500.0,0.0002792,2]
[329290888,1718219441176,-155.74,0.0002792,2]
[329290890,1718219441192,-500.0,0.0002792,2]
[329290892,1718219441202,-500.0,0.0002792,2]
[329290894,1718219441212,-500.0,0.0002792,2]
[329290896,1718219441222,-479.12,0.0002792,2]
[329290898,1718219441232,-500.0,0.0002792,2]
[329290900,1718219441245,-575.51,0.0002792,2]
[329290903,1718219441259,-500.0,0.0002792,2]
[329290907,1718219441274,-500.0,0.0002792,2]
[329290909,1718219441285,-500.0,0.0002792,2]
[329290910,1718219441297,-500.0,0.0002792,2]
[329290912,1718219441308,-500.0,0.0002792,2]
[329290914,1718219441318,-594.77577182,0.0002792,2]
[329290916,1718219441328,-500.0,0.0002792,2]
[329290918,1718219441341,-623.76649429,0.0002792,2]
[329290920,1718219441351,-500.0,0.0002792,2]
[329290922,1718219441361,-500.0,0.0002792,2]
[329290924,1718219441372,-500.0,0.0002792,2]
[329290926,1718219441383,-500.0,0.0002792,2]
[329290928,1718219441394,-500.0,0.0002792,2]
[329290930,1718219441405,-500.0,0.0002792,2]
[329290932,1718219441416,-500.0,0.0002792,2]
[329290934,1718219441427,-500.0,0.0002792,2]
[329290936,1718219441438,-500.0,0.0002792,2]
[329290938,1718219441449,-500.0,0.0002792,2]
[329290940,1718219441461,-248.47243438,0.0002792,2]
[329290942,1718219441473,-500.0,0.0002792,2]
[329290944,1718219441483,-500.0,0.00027921,2]
[329290946,1718219441493,-295.56194681,0.00027925,2]
[329290948,1718219441518,-151.81,0.00027965,2]
[329290951,1718219441533,-227.89366087,0.00027965,2]
[329290953,1718219441544,-295.56194681,0.00027966,2]
[329290955,1718219441555,-48787.22287671,0.00027975,2]
[329290968,1718219441689,-256.269,0.00027975,2]
[329290978,1718219441790,-5638.69371093,0.00014804,2]
[329290980,1718219441808,-4903.28615932,0.00014804,2]
[329290982,1718219441819,-7071.34155709,0.00027975,2]
[329290985,1718219441836,-301.52429435,0.00027975,2]
[329290987,1718219441849,-18409.81885516,0.00027975,2]
[329290990,1718219441875,-41152.04766756,0.00027975,2]
[329290992,1718219441889,-358.78,0.00027975,2]
[329290995,1718219441909,-2579.67875804,0.00027975,2]
[329290997,1718219441922,-2465.70164858,0.00027975,2]
[329291000,1718219441935,-1494.38448934,0.00027975,2]
[329291089,1718219443184,-283.05405897,0.00014804,2]
[329291091,1718219443196,-490.22199479,0.00027274,2]
[329291093,1718219443209,-2234.99541334,0.00027975,2]
[329291225,1718219445593,-500.0,0.00027299,2]
[329291227,1718219445606,-490.22199479,0.00027712,2]
[329291229,1718219445621,-137452.83456552,0.00027975,2]
[329291232,1718219445748,-22190.91109511,0.00027975,2]
[329291233,1718219445766,-361.32,0.00027975,2]
[329291234,1718219445780,-432.917,0.00027975,2]
[329291239,1718219446141,-500.0,0.00027436,2]
[329291240,1718219446153,-44794.78335788,0.00027975,2]
[329291241,1718219446220,-253.22,0.00027573,2]
[329291242,1718219446237,-4694.29911051,0.00027975,2]
[329291263,1718219447089,-171018.40015334,0.00027975,2]
[329291280,1718219447290,-6875.7,0.00027975,2]
[329291285,1718219447383,-4190.54488205,0.00027975,2]
[329291286,1718219447576,-941.05466901,0.00027975,2]
[329291287,1718219447589,-4661.7770805,0.00027975,2]
[329291288,1718219447605,-4832.69793326,0.00027975,2]
[329291289,1718219447619,-3845.88360665,0.00027975,2]
[329291290,1718219447631,-547.82194005,0.00027975,2]
[329291291,1718219447644,-2449.15488545,0.00027975,2]
[329291292,1718219447658,-1790.07299999,0.00027975,2]
[329291293,1718219447745,-192.05,0.00027965,3]
[329291294,1718219447758,-281.26015174,0.00027975,2]
[329292144,1718220146642,150.0,0.0003183,30]
[329292145,1718220152238,321.84,0.00024688,30]
[329292190,1718220639735,-155.0,0.00017214,2]
[329292191,1718220639764,-895.95924622,0.00017215,2]
[329292192,1718220639803,-531.69212221,0.00017215,2]
[329292193,1718220639829,-648.20461748,0.00017224,2]
[329292194,1718220639875,-1250.0,0.00021,2]
[329292195,1718220639887,-3512.36412596,0.00021,2]
[329292196,1718220639917,-311.69587404,0.00021,2]
[329292197,1718220639928,-137.05288483,0.00021,2]
[329292198,1718220640104,-362.93711517,0.00021,2]
[329292199,1718220640115,-154.595456,0.00022215,2]
[329292200,1718220640132,-82.46742883,0.00022215,2]
[329292201,1718220640176,-126.58510617,0.00022215,2]
[329292202,1718220640214,-154.595457,0.00022215,2]
[329292203,1718220640228,-196.509235,0.00022215,2]
[329292204,1718220640253,-209.052535,0.00022493,2]
[329292205,1718220640288,-196.509235,0.00022493,2]
[329292206,1718220640301,-154.595456,0.00022585,2]
[329292207,1718220640318,-154.595457,0.00022585,2]
[329292208,1718220640331,-209.052535,0.0002277,2]
[329292209,1718220640343,-196.509235,0.0002277,2]
[329292210,1718220640369,-347.78,0.00022814,2]
[329292211,1718220640389,-154.595456,0.00022956,2]
[329292212,1718220640429,-154.595457,0.00022956,2]
[329292213,1718220640442,-1300.0,0.00023,2]
[329292214,1718220640457,-209.052535,0.00023048,2]
[329292215,1718220640473,-196.509235,0.00023048,2]
[329292216,1718220640486,-154.595456,0.00023326,2]
[329292217,1718220640501,-154.595457,0.00023326,2]
[329292218,1718220640514,-209.052535,0.00023326,2]
[329292219,1718220640542,-196.509235,0.00023326,2]
[329292220,1718220640576,-154.60917225,0.0002415,2]
[329292221,1718220640591,-153.99687917,0.00024326,2]
[329292222,1718220640604,-154.5,0.00024384,2]
[329292223,1718220640618,-155.26,0.00024384,2]
[329292224,1718220640633,-156.64878107,0.00024387,2]
[329292225,1718220640655,-178.36774035,0.00024491,2]
[329292226,1718220640667,-153.82412396,0.00024516,2]
[329292227,1718220640683,-250.0,0.00024541,2]
[329292228,1718220640699,-231.1,0.00024611,2]
[329292229,1718220640712,-250.0,0.00024613,2]
[329292230,1718220640725,-153.99687917,0.00024629,2]
[329292231,1718220640736,-178.36774035,0.00024644,2]
[329292232,1718220640764,-243.13,0.00024645,2]
[329292233,1718220640783,-250.0,0.00024651,2]
[329292234,1718220640797,-229.25,0.00024674,2]
[329292235,1718220640819,-169.15586853,0.00024675,2]
[329292236,1718220640846,-2400.38546775,0.00024686,2]
[329292237,1718220640880,-888.50890406,0.00024686,2]
[329292238,1718220640920,-2319.86839981,0.00024686,2]
[329292239,1718220640936,-26626.76040061,0.00024686,2]
[329292240,1718220640952,-1249.34786736,0.00024687,2]
[329292241,1718220640968,-155.0,0.00024688,2]
[329292242,1718220640982,-363.0831919,0.00024688,2]
[329292243,1718220640995,-447.24511978,0.00024688,2]
[329292244,1718220641027,-6700.57956155,0.00024688,2]
[329292245,1718220641230,-404.7199998,0.00024688,2]
[329292246,1718220641259,-483.71393226,0.00024688,2]
[329292247,1718220641293,-5301.53009967,0.00024688,2]
[329292248,1718220641345,-1361.45276237,0.00024688,2]
[329292249,1718220641361,-1042.16772,0.00024688,2]
[329292250,1718220641402,-942.85131735,0.00024688,2]
[329292251,1718220641433,-2697.65304,0.00024688,2]
[329292252,1718220641662,-849.45491489,0.00024688,2]
[329292253,1718220641680,-178.36774035,0.00024716,2]
[329292254,1718220641712,-1027.37,0.00024726,2]
[329292256,1718220641770,-178.36774035,0.00024742,2]
[329292258,1718220641801,-99.11121006,0.00024787,2]
[329292260,1718220641841,-412.88878994,0.00024787,2]
[329292262,1718220641866,-202.36562398,0.0002485,2]
[329292264,1718220641910,-751.676,0.0002485,2]
[329292266,1718220641940,-255.97559429,0.0002485,2]
[329292268,1718220641961,-1252.86278173,0.0002485,2]
[329292270,1718220641982,-154.60917225,0.00024868,2]
[329292271,1718220642008,-154.60917225,0.00024885,2]
[329292273,1718220642058,-178.36774035,0.00024908,2]
[329292276,1718220642078,-154.60917225,0.00024915,2]
[329292277,1718220642102,-178.36774035,0.00024997,2]
[329292280,1718220642129,-1350.0,0.00025,2]
[329292283,1718220642156,-995.02,0.00025,2]
[329292285,1718220642185,-622.04,0.00025,2]
[329292287,1718220642206,-153.99687917,0.00025014,2]
[329292288,1718220642218,-347.78,0.00025078,2]
[329292291,1718220642231,-14477.41742419,0.0002509,2]
[329292293,1718220642245,-4878.2,0.00025091,2]
[329292294,1718220642259,-152.05748044,0.000252,2]
[329292296,1718220642282,-152.05748044,0.00025215,2]
[329292299,1718220642294,-178.36774035,0.00025432,2]
[329292300,1718220642322,-155.78581387,0.00025434,2]
[329292303,1718220642368,-202.57,0.00025452,2]
[329292305,1718220642388,-491.8406347,0.00025457,2]
[329292306,1718220642408,-299.7,0.00025475,2]
[329292307,1718220642441,-154.80026439,0.00025538,2]
[329292309,1718220642490,-162.72443493,0.00025634,2]
[329292311,1718220642503,-154.60917225,0.00025774,2]
[329292313,1718220642535,-178.36774035,0.00025784,2]
[329292316,1718220642572,-178.36774035,0.0002593,2]
[329292318,1718220642605,-178.36774035,0.00025937,2]
[329292320,1718220642627,-160.58815837,0.00026076,2]
[329292323,1718220642710,-178.36774035,0.00026202,2]
[329292325,1718220642724,-178.36774035,0.0002622,2]
[329292327,1718220642736,-154.68877164,0.00026241,2]
[329292329,1718220642749,-154.68877165,0.00026265,2]
[329292331,1718220642768,-3000.0,0.000263,2]
[329292332,1718220642779,-154.60917225,0.00026321,2]
[329292334,1718220642796,-154.60917225,0.00026366,2]
[329292336,1718220642810,-155.78581387,0.00026486,2]
[329292338,1718220642850,-154.60917225,0.00026585,2]
[329292339,1718220642860,-152.05748046,0.00026797,2]
[329292342,1718220642880,-178.36774035,0.00026961,2]
[329292344,1718220642893,-178.36774035,0.00026998,2]
[329292346,1718220642924,-1400.0,0.00027,2]
[329292348,1718220642947,-17804.38443806,0.00027,2]
[329292350,1718220642964,-178.36774035,0.00027176,2]
[329292352,1718220642986,-2013.69130441,0.000272,2]
[329292354,1718220642998,-178.36774035,0.00027207,2]
[329292357,1718220643012,-344.10350217,0.00027298,2]
[329292360,1718220643026,-500.0,0.00027298,2]
[329292362,1718220643046,-189.70546914,0.00027298,2]
[329292364,1718220643058,-347.78,0.00027342,2]
[329292366,1718220643077,-243.13,0.00027385,2]
[329292368,1718220643089,-150.0,0.00027397,2]
[329292370,1718220643101,-659.5783,0.00027447,2]
[329292371,1718220643117,-328.36370425,0.00027492,2]
[329292373,1718220643147,-851.24,0.00027547,2]
[329292376,1718220643182,-417.62,0.00027547,2]
[329292377,1718220643238,-417.62,0.00027547,2]
[329292379,1718220643260,-851.24,0.00027547,2]
[329292382,1718220643271,-851.24,0.00027547,2]
[329292385,1718220643282,-417.62,0.00027547,2]
[329292388,1718220643308,-417.62,0.00027547,2]
[329292391,1718220643318,-417.62,0.00027547,2]
[329292394,1718220643331,-851.24,0.00027547,2]
[329292398,1718220643360,-152.96,0.00027547,2]
[329292403,1718220643383,-851.24,0.00027547,2]
[329292405,1718220643401,-851.24,0.00027547,2]
[329292407,1718220643419,-851.24,0.00027547,2]
[329292410,1718220643454,-429.83,0.00027547,2]
[329292413,1718220643480,-4863.32,0.00027548,2]
[329292416,1718220643512,-2366.88109292,0.000277,2]
[329292418,1718220643526,-738.0,0.000277,2]
[329292420,1718220643542,-2000.0,0.000277,2]
[329292421,1718220643554,-1000.0,0.000277,2]
[329292422,1718220643569,-328.3637042,0.0002776,2]
[329292424,1718220643582,-150.0,0.00027808,2]
[329292426,1718220643594,-1540.12557251,0.00027874,2]
[329292428,1718220643606,-1031.5766,0.00027875,2]
[329292430,1718220643635,-460.38930826,0.00027875,2]
[329292432,1718220643646,-5627.3952,0.00027875,2]
[329292434,1718220643657,-1000.0,0.00027875,2]
[329292436,1718220643668,-2500.0,0.00027875,2]
[329292438,1718220643682,-512.0,0.00027886,2]
[329292439,1718220643694,-266.2781261,0.000279,2]
[329292442,1718220643712,-321.10474962,0.000279,2]
[329292444,1718220643724,-4938.57,0.00027916,2]
[329292446,1718220643737,-1000.0,0.0002792,2]
[329292448,1718220643751,-500.0,0.0002792,2]
[329292451,1718220643773,-500.0,0.0002792,2]
[329292453,1718220643791,-1000.0,0.0002792,2]
[329292456,1718220643803,-500.0,0.0002792,2]
[329292460,1718220643847,-157.81086205,0.0002792,2]
[329292461,1718220643881,-168.15398146,0.00027974,2]
[329292463,1718220643917,-342.97999975,0.00027974,2]
[329292467,1718220643938,-105.39601879,0.00027974,2]
[329292470,1718220643951,-299.33398108,0.00027974,2]
[329292472,1718220643974,-9.58468726,0.00027974,2]
[329292474,1718220643993,-199.75820673,0.00027974,2]
[329292477,1718220644009,-500.0,0.00027974,2]
[329292480,1718220644033,-199.75740519,0.00027974,2]
[329292483,1718220644058,-289.36000458,0.00027974,2]
[329292485,1718220644085,-348.07728425,0.00027974,2]
[329292487,1718220644130,-150.31744987,0.00027974,2]
[329292489,1718220644144,-150.61708646,0.00027974,2]
[329292491,1718220644154,-158.60738281,0.00027974,2]
[329292493,1718220644167,-198.55886464,0.00027974,2]
[329292495,1718220644183,-500.0,0.00027974,2]
[329292498,1718220644204,-164.79986249,0.00027974,2]
[329292502,1718220644236,-499.3935227,0.00027974,2]
[329292504,1718220644263,-158.30774718,0.00027974,2]
[329292506,1718220644284,-299.36,0.00027974,2]
[329292509,1718220644304,-199.7574097,0.00027974,2]
[329292512,1718220644328,-228.23482672,0.00027974,2]
[329292516,1718220644399,-250.49579177,0.00027974,2]
[329292519,1718220644437,-199.7574101,0.00027974,2]
[329292521,1718220644458,-500.0,0.00027974,2]
[329292523,1718220644488,-500.0,0.00027974,2]
[329292525,1718220644501,-550.78499225,0.00027974,2]
[329292528,1718220644525,-500.0,0.00027974,2]
[329292530,1718220644538,-500.0,0.00027974,2]
[329292532,1718220644550,-500.0,0.00027974,2]
[329292534,1718220644561,-500.0,0.00027974,2]
[329292537,1718220644578,-500.0,0.00027974,2]
[329292538,1718220644597,-500.0,0.00027974,2]
[329292540,1718220644610,-500.0,0.00027974,2]
[329292543,1718220644648,-500.0,0.00027974,2]
[329292545,1718220644691,-500.0,0.00027974,2]
[329292548,1718220644728,-500.0,0.00027974,2]
[329292551,1718220644788,-563.46866141,0.00027974,2]
[329292552,1718220644802,-565.81,0.00027974,2]
[329292554,1718220644815,-500.0,0.00027974,2]
[329292556,1718220644832,-500.0,0.00027974,2]
[329292558,1718220644852,-500.0,0.00027974,2]
[329292560,1718220644892,-500.0,0.00027974,2]
[329292562,1718220644921,-500.0,0.00027974,2]
[329292564,1718220644935,-313.38166597,0.00027974,2]
[329292567,1718220644950,-500.0,0.00027974,2]
[329292569,1718220644980,-500.0,0.00027974,2]
[329292571,1718220645004,-500.0,0.00027974,2]
[329292573,1718220645020,-532.28,0.00027974,2]